Workbook

Sheet Instructions

Sheet Facility Efficiency Increase
B1: Simplified Method for Calculating Efficiency Improvement for Hydropower Facility - Section 243
B3: Name of Hydropower Facility
B4: Plant Generation Capacity and Number of Units
B5: Metric - Facility Efficiency Calculation
D8: Total Unit Actual Generation prior to improvements | E8: Total Theoretical Unit Generation | F8: Total Expected Unit Generation After Improvements
D9: (MWH) | E9: (MWH) | F9: (MWH)
C10: Unit
C11: Unit
C12: Unit
C13: Unit
C14: Unit
C15: Unit
C16: Unit
C17: Unit
C18: Unit
C19: Unit
C20: Unit
C21: Unit
C22: Unit
C23: Unit
C24: Unit
C25: Unit
C26: Cumulative: | D26: =SUM(D10:D25) -> 0 | E26: =SUM(E10:E25) -> 0 | F26: 0
C28: Existing Facility Efficiency: | F28: =IFERROR(D26/E26*100,0) -> 0
C30: Improved Facility Efficiency: | F30: =IFERROR(F26/E26*100,0) -> 0
C32: Total Facility Efficiency Improvement Percentage: | F32: =IFERROR(F30-F28,0) -> 0

Sheet Monthly Data Tool
B1: Unit Identifier
B2: Unit Nameplate Capacity, Head and Flow
B3: Metric - Unit Monthly Efficiency Calculation
B5: Data Prior to Improvements: | K5: After Improvements:
B7: Year | C7: Month | D7: Unit Average Flow | E7: Gross Operating Head | F7: Net Operating Head | G7: Unit Actual Generation | H7: Calculated Theoretical Generation | I7: Calculated Facility Efficiency | K7: Unit Efficiency | L7: Calculated Improved Generation | M7: Calculated Generation Increase
B8: (YYYY) | C8: (MM) | D8: (CMS) | E8: (M) | F8: (M) | G8: (MWH) | H8: (MWH) | I8: (%) | K8: (%) | L8: (MWH) | M8: (MWH)
H9: =IFERROR(9.81*D9*F9*24*DAY(EOMONTH(DATEVALUE(C9&"-01-"&B9),0))/1000,0) -> 0 | I9: =IFERROR(G9/H9*100,0) -> 0 | L9: =IFERROR(H9*K9/100,0) -> 0 | M9: =IFERROR(L9-G9,0) -> 0
H10: =IFERROR(9.81*D10*F10*24*DAY(EOMONTH(DATEVALUE(C10&"-01-"&B10),0))/1000,0) -> 0 | I10: =IFERROR(G10/H10*100,0) -> 0 | L10: =IFERROR(H10*K10/100,0) -> 0 | M10: 0
H11: 0 | I11: 0 | L11: 0 | M11: 0
H12: 0 | I12: 0 | L12: 0 | M12: 0
H13: 0 | I13: 0 | L13: 0 | M13: 0
H14: 0 | I14: 0 | L14: 0 | M14: 0
H15: 0 | I15: 0 | L15: 0 | M15: 0
H16: 0 | I16: 0 | L16: 0 | M16: 0
H17: 0 | I17: 0 | L17: 0 | M17: 0
H18: 0 | I18: 0 | L18: 0 | M18: 0
H19: 0 | I19: 0 | L19: 0 | M19: 0
H20: 0 | I20: 0 | L20: 0 | M20: 0
H21: 0 | I21: 0 | L21: 0 | M21: 0
H22: 0 | I22: 0 | L22: 0 | M22: 0
H23: 0 | I23: 0 | L23: 0 | M23: 0
H24: 0 | I24: 0 | L24: 0 | M24: 0
H25: 0 | I25: 0 | L25: 0 | M25: 0
H26: 0 | I26: 0 | L26: 0 | M26: 0
H27: 0 | I27: 0 | L27: 0 | M27: 0
H28: 0 | I28: 0 | L28: 0 | M28: 0
H29: 0 | I29: 0 | L29: 0 | M29: 0
H30: 0 | I30: 0 | L30: 0 | M30: 0
H31: 0 | I31: 0 | L31: 0 | M31: 0
H32: 0 | I32: 0 | L32: 0 | M32: 0
H33: 0 | I33: 0 | L33: 0 | M33: 0
H34: 0 | I34: 0 | L34: 0 | M34: 0
H35: 0 | I35: 0 | L35: 0 | M35: 0
H36: 0 | I36: 0 | L36: 0 | M36: 0
H37: =IFERROR(9.81*D37*F37*24*DAY(EOMONTH(DATEVALUE(C37&"-01-"&B37),0))/1000,0) -> 0 | I37: 0 | L37: 0 | M37: 0
H38: 0 | I38: 0 | L38: 0 | M38: 0
H39: 0 | I39: 0 | L39: 0 | M39: 0
H40: 0 | I40: 0 | L40: 0 | M40: 0
H41: 0 | I41: 0 | L41: 0 | M41: 0
H42: 0 | I42: 0 | L42: 0 | M42: 0
H43: 0 | I43: 0 | L43: 0 | M43: 0
H44: 0 | I44: 0 | L44: 0 | M44: 0
H45: 0 | I45: 0 | L45: 0 | M45: 0
H46: 0 | I46: 0 | L46: 0 | M46: 0
H47: 0 | I47: 0 | L47: 0 | M47: 0
H48: 0 | I48: 0 | L48: 0 | M48: 0
H49: 0 | I49: 0 | L49: 0 | M49: 0
H50: 0 | I50: 0 | L50: 0 | M50: 0
H51: 0 | I51: 0 | L51: 0 | M51: 0
H52: 0 | I52: 0 | L52: 0 | M52: 0
H53: 0 | I53: 0 | L53: 0 | M53: 0
H54: 0 | I54: 0 | L54: 0 | M54: 0
H55: 0 | I55: 0 | L55: 0 | M55: 0
H56: 0 | I56: 0 | L56: 0 | M56: 0
H57: 0 | I57: 0 | L57: 0 | M57: 0
H58: 0 | I58: 0 | L58: 0 | M58: 0
H59: 0 | I59: 0 | L59: 0 | M59: 0
H60: =IFERROR(9.81*D60*F60*24*DAY(EOMONTH(DATEVALUE(C60&"-01-"&B60),0))/1000,0) -> 0 | I60: 0 | L60: 0 | M60: 0
H61: 0 | I61: 0 | L61: 0 | M61: 0
H62: 0 | I62: 0 | L62: 0 | M62: 0
H63: 0 | I63: 0 | L63: 0 | M63: 0
H64: 0 | I64: 0 | L64: 0 | M64: 0
H65: 0 | I65: 0 | L65: 0 | M65: 0
H66: 0 | I66: 0 | L66: 0 | M66: 0
H67: 0 | I67: 0 | L67: 0 | M67: 0
H68: 0 | I68: 0 | L68: 0 | M68: 0
B69: Unit Cumulative: | G69: =SUM(G9:G68) -> 0 | H69: =SUM(H9:H68) -> 0 | I69: 0 | L69: =SUM(L9:L68) -> 0 | M69: =SUM(M9:M68) -> 0
G71: Existing Unit Efficiency: | H71: =IFERROR(G69/H69*100,0) -> 0
G73: Improved Unit Efficiency: | H73: =IFERROR(L69/H69*100,0) -> 0

Sheet Daily Data Tool
B1: Unit Identifier
B2: Unit Nameplate Capacity, Head and Flow
B3: Metric - Unit Daily Efficiency Calculation
B5: Data Prior to Improvements: | L5: After Improvements:
B7: Year | C7: Month | D7: Day | E7: Unit Average Flow | F7: Gross Operating Head | G7: Net Operating Head | H7: Unit Actual Generation | I7: Calculated Theoretical Generation | J7: Calculated Facility Efficiency | L7: Unit Efficiency | M7: Calculated Improved Generation | N7: Calculated Generation Increase
B8: (YYYY) | C8: (MM) | D8: (DD) | E8: (CMS) | F8: (M) | G8: (M) | H8: (MWH) | I8: (MWH) | J8: (%) | L8: (%) | M8: (MWH) | N8: (MWH)
I9: =IFERROR(E9*G9*9.81*24/1000,0) -> 0 | J9: =IFERROR(H9/I9*100,0) -> 0 | M9: =IFERROR(I9*L9/100,0) -> 0 | N9: =IFERROR(M9-H9,0) -> 0
I10: =IFERROR(E10*G10*9.81*24/1000,0) -> 0 | J10: 0 | M10: =IFERROR(I10*L10/100,0) -> 0 | N10: 0
I11: 0 | J11: 0 | M11: 0 | N11: 0
I12: 0 | J12: 0 | M12: 0 | N12: 0
I13: 0 | J13: 0 | M13: 0 | N13: 0
I14: 0 | J14: 0 | M14: 0 | N14: 0
I15: 0 | J15: 0 | M15: 0 | N15: 0
I16: 0 | J16: 0 | M16: 0 | N16: 0
I17: 0 | J17: 0 | M17: 0 | N17: 0
I18: 0 | J18: 0 | M18: 0 | N18: 0
I19: 0 | J19: 0 | M19: 0 | N19: 0
I20: 0 | J20: 0 | M20: 0 | N20: 0
I21: 0 | J21: 0 | M21: 0 | N21: 0
I22: 0 | J22: 0 | M22: 0 | N22: 0
I23: 0 | J23: 0 | M23: 0 | N23: 0
I24: 0 | J24: 0 | M24: 0 | N24: 0
I25: 0 | J25: 0 | M25: 0 | N25: 0
I26: 0 | J26: 0 | M26: 0 | N26: 0
I27: 0 | J27: 0 | M27: 0 | N27: 0
I28: 0 | J28: 0 | M28: 0 | N28: 0
I29: 0 | J29: 0 | M29: 0 | N29: 0
I30: 0 | J30: 0 | M30: 0 | N30: 0
I31: 0 | J31: 0 | M31: 0 | N31: 0
I32: 0 | J32: 0 | M32: 0 | N32: 0
I33: 0 | J33: 0 | M33: 0 | N33: 0
I34: 0 | J34: 0 | M34: 0 | N34: 0
I35: 0 | J35: 0 | M35: 0 | N35: 0
I36: 0 | J36: 0 | M36: 0 | N36: 0
I37: 0 | J37: 0 | M37: 0 | N37: 0
I38: 0 | J38: 0 | M38: 0 | N38: 0
I39: 0 | J39: 0 | M39: 0 | N39: 0
I40: 0 | J40: 0 | M40: 0 | N40: 0
I41: 0 | J41: 0 | M41: 0 | N41: 0
I42: 0 | J42: 0 | M42: 0 | N42: 0
I43: 0 | J43: 0 | M43: 0 | N43: 0
I44: 0 | J44: 0 | M44: 0 | N44: 0
I45: 0 | J45: 0 | M45: 0 | N45: 0
I46: 0 | J46: 0 | M46: 0 | N46: 0
I47: 0 | J47: 0 | M47: 0 | N47: 0
I48: 0 | J48: 0 | M48: 0 | N48: 0
I49: 0 | J49: 0 | M49: 0 | N49: 0
I50: 0 | J50: 0 | M50: 0 | N50: 0
I51: 0 | J51: 0 | M51: 0 | N51: 0
I52: 0 | J52: 0 | M52: 0 | N52: 0
I53: 0 | J53: 0 | M53: 0 | N53: 0
I54: 0 | J54: 0 | M54: 0 | N54: 0
I55: 0 | J55: 0 | M55: 0 | N55: 0
I56: 0 | J56: 0 | M56: 0 | N56: 0
I57: 0 | J57: 0 | M57: 0 | N57: 0
I58: 0 | J58: 0 | M58: 0 | N58: 0
I59: 0 | J59: 0 | M59: 0 | N59: 0
I60: 0 | J60: 0 | M60: 0 | N60: 0
I61: 0 | J61: 0 | M61: 0 | N61: 0
I62: 0 | J62: 0 | M62: 0 | N62: 0
I63: 0 | J63: 0 | M63: 0 | N63: 0
I64: 0 | J64: 0 | M64: 0 | N64: 0
I65: 0 | J65: 0 | M65: 0 | N65: 0
I66: 0 | J66: 0 | M66: 0 | N66: 0
I67: 0 | J67: 0 | M67: 0 | N67: 0
I68: 0 | J68: 0 | M68: 0 | N68: 0
I69: 0 | J69: 0 | M69: 0 | N69: 0
I70: 0 | J70: 0 | M70: 0 | N70: 0
I71: 0 | J71: 0 | M71: 0 | N71: 0
I72: 0 | J72: 0 | M72: =IFERROR(I72*L72/100,0) -> 0 | N72: 0
I73: 0 | J73: 0 | M73: 0 | N73: 0
I74: =IFERROR(E74*G74*9.81*24/1000,0) -> 0 | J74: 0 | M74: 0 | N74: 0
I75: 0 | J75: 0 | M75: 0 | N75: 0
I76: 0 | J76: 0 | M76: 0 | N76: 0
I77: 0 | J77: 0 | M77: 0 | N77: 0
I78: =IFERROR(E78*G78*9.81*24/1000,0) -> 0 | J78: 0 | M78: 0 | N78: 0
I79: =IFERROR(E79*G79*9.81*24/1000,0) -> 0 | J79: 0 | M79: 0 | N79: 0
I80: 0 | J80: 0 | M80: 0 | N80: 0
I81: 0 | J81: 0 | M81: 0 | N81: 0
I82: 0 | J82: 0 | M82: 0 | N82: 0
I83: 0 | J83: 0 | M83: 0 | N83: 0
I84: 0 | J84: 0 | M84: 0 | N84: 0
I85: 0 | J85: 0 | M85: 0 | N85: 0
I86: 0 | J86: 0 | M86: 0 | N86: 0
I87: 0 | J87: 0 | M87: 0 | N87: 0
I88: 0 | J88: 0 | M88: 0 | N88: 0
I89: 0 | J89: 0 | M89: 0 | N89: 0
I90: 0 | J90: 0 | M90: 0 | N90: 0
I91: 0 | J91: 0 | M91: 0 | N91: 0
I92: 0 | J92: 0 | M92: 0 | N92: 0
I93: 0 | J93: 0 | M93: 0 | N93: 0
I94: 0 | J94: 0 | M94: 0 | N94: 0
I95: 0 | J95: 0 | M95: 0 | N95: 0
I96: 0 | J96: 0 | M96: 0 | N96: 0
I97: 0 | J97: 0 | M97: 0 | N97: 0
I98: 0 | J98: =IFERROR(H98/I98*100,0) -> 0 | M98: 0 | N98: 0
I99: =IFERROR(E99*G99*9.81*24/1000,0) -> 0 | J99: 0 | M99: 0 | N99: =IFERROR(M99-H99,0) -> 0
I100: =IFERROR(E100*G100*9.81*24/1000,0) -> 0 | J100: 0 | M100: 0 | N100: 0
I101: 0 | J101: 0 | M101: 0 | N101: 0
I102: 0 | J102: 0 | M102: 0 | N102: 0
I103: 0 | J103: 0 | M103: 0 | N103: 0
I104: 0 | J104: 0 | M104: 0 | N104: 0
I105: 0 | J105: 0 | M105: 0 | N105: 0
I106: 0 | J106: 0 | M106: 0 | N106: 0
I107: 0 | J107: 0 | M107: 0 | N107: 0
I108: 0 | J108: 0 | M108: 0 | N108: 0
I109: 0 | J109: 0 | M109: 0 | N109: 0
I110: 0 | J110: 0 | M110: 0 | N110: 0
I111: 0 | J111: 0 | M111: 0 | N111: 0
I112: 0 | J112: 0 | M112: 0 | N112: 0
I113: 0 | J113: 0 | M113: 0 | N113: 0
I114: 0 | J114: 0 | M114: 0 | N114: 0
I115: 0 | J115: 0 | M115: 0 | N115: 0
I116: 0 | J116: 0 | M116: 0 | N116: 0
I117: 0 | J117: 0 | M117: 0 | N117: 0
I118: 0 | J118: 0 | M118: 0 | N118: 0
I119: 0 | J119: 0 | M119: 0 | N119: 0
I120: 0 | J120: 0 | M120: 0 | N120: 0
I121: 0 | J121: 0 | M121: 0 | N121: 0
I122: =IFERROR(E122*G122*9.81*24/1000,0) -> 0 | J122: 0 | M122: 0 | N122: 0
I123: =IFERROR(E123*G123*9.81*24/1000,0) -> 0 | J123: 0 | M123: 0 | N123: 0
I124: 0 | J124: 0 | M124: 0 | N124: 0
I125: 0 | J125: 0 | M125: 0 | N125: 0
I126: 0 | J126: 0 | M126: 0 | N126: 0
I127: 0 | J127: 0 | M127: 0 | N127: 0
I128: 0 | J128: 0 | M128: 0 | N128: 0
I129: 0 | J129: 0 | M129: 0 | N129: 0
I130: 0 | J130: 0 | M130: 0 | N130: 0
I131: 0 | J131: 0 | M131: 0 | N131: 0
I132: 0 | J132: 0 | M132: 0 | N132: 0
I133: 0 | J133: 0 | M133: 0 | N133: 0
I134: 0 | J134: 0 | M134: 0 | N134: 0
I135: 0 | J135: 0 | M135: 0 | N135: 0
I136: 0 | J136: 0 | M136: =IFERROR(I136*L136/100,0) -> 0 | N136: 0
I137: 0 | J137: 0 | M137: 0 | N137: 0
I138: 0 | J138: 0 | M138: 0 | N138: 0
I139: 0 | J139: 0 | M139: 0 | N139: 0
I140: 0 | J140: 0 | M140: 0 | N140: 0
I141: 0 | J141: 0 | M141: 0 | N141: 0
I142: 0 | J142: 0 | M142: 0 | N142: 0
I143: =IFERROR(E143*G143*9.81*24/1000,0) -> 0 | J143: 0 | M143: 0 | N143: 0
I144: =IFERROR(E144*G144*9.81*24/1000,0) -> 0 | J144: 0 | M144: 0 | N144: 0
I145: 0 | J145: 0 | M145: 0 | N145: 0
I146: 0 | J146: 0 | M146: 0 | N146: 0
I147: 0 | J147: 0 | M147: 0 | N147: 0
I148: 0 | J148: 0 | M148: 0 | N148: 0
I149: 0 | J149: 0 | M149: 0 | N149: 0
I150: 0 | J150: 0 | M150: 0 | N150: 0
I151: 0 | J151: 0 | M151: 0 | N151: 0
I152: 0 | J152: 0 | M152: 0 | N152: 0
I153: 0 | J153: 0 | M153: 0 | N153: 0
I154: 0 | J154: 0 | M154: 0 | N154: 0
I155: 0 | J155: 0 | M155: 0 | N155: 0
I156: 0 | J156: 0 | M156: 0 | N156: 0
I157: 0 | J157: 0 | M157: 0 | N157: 0
I158: 0 | J158: 0 | M158: 0 | N158: 0
I159: 0 | J159: 0 | M159: 0 | N159: 0
I160: 0 | J160: 0 | M160: 0 | N160: 0
I161: =IFERROR(E161*G161*9.81*24/1000,0) -> 0 | J161: 0 | M161: 0 | N161: 0
I162: =IFERROR(E162*G162*9.81*24/1000,0) -> 0 | J162: =IFERROR(H162/I162*100,0) -> 0 | M162: 0 | N162: 0
I163: 0 | J163: 0 | M163: 0 | N163: =IFERROR(M163-H163,0) -> 0
I164: 0 | J164: 0 | M164: 0 | N164: 0
I165: 0 | J165: 0 | M165: 0 | N165: 0
I166: 0 | J166: 0 | M166: 0 | N166: 0
I167: 0 | J167: 0 | M167: 0 | N167: 0
I168: 0 | J168: 0 | M168: 0 | N168: 0
I169: 0 | J169: 0 | M169: 0 | N169: 0
I170: 0 | J170: 0 | M170: 0 | N170: 0
I171: 0 | J171: 0 | M171: 0 | N171: 0
I172: 0 | J172: 0 | M172: 0 | N172: 0
I173: 0 | J173: 0 | M173: 0 | N173: 0
I174: 0 | J174: 0 | M174: 0 | N174: 0
I175: 0 | J175: 0 | M175: 0 | N175: 0
I176: 0 | J176: 0 | M176: 0 | N176: 0
I177: 0 | J177: 0 | M177: 0 | N177: 0
I178: 0 | J178: 0 | M178: 0 | N178: 0
I179: 0 | J179: 0 | M179: 0 | N179: 0
I180: 0 | J180: 0 | M180: 0 | N180: 0
I181: 0 | J181: 0 | M181: 0 | N181: 0
I182: 0 | J182: 0 | M182: 0 | N182: 0
I183: =IFERROR(E183*G183*9.81*24/1000,0) -> 0 | J183: 0 | M183: 0 | N183: 0
I184: =IFERROR(E184*G184*9.81*24/1000,0) -> 0 | J184: 0 | M184: 0 | N184: 0
I185: 0 | J185: 0 | M185: 0 | N185: 0
I186: 0 | J186: 0 | M186: 0 | N186: 0
I187: 0 | J187: 0 | M187: 0 | N187: 0
I188: 0 | J188: 0 | M188: 0 | N188: 0
I189: 0 | J189: 0 | M189: 0 | N189: 0
I190: 0 | J190: 0 | M190: 0 | N190: 0
I191: 0 | J191: 0 | M191: 0 | N191: 0
I192: 0 | J192: 0 | M192: 0 | N192: 0
I193: 0 | J193: 0 | M193: 0 | N193: 0
I194: 0 | J194: 0 | M194: 0 | N194: 0
I195: 0 | J195: 0 | M195: 0 | N195: 0
I196: 0 | J196: 0 | M196: 0 | N196: 0
I197: 0 | J197: 0 | M197: 0 | N197: 0
I198: 0 | J198: 0 | M198: 0 | N198: 0
I199: 0 | J199: 0 | M199: 0 | N199: 0
I200: 0 | J200: 0 | M200: 0 | N200: 0
I201: 0 | J201: 0 | M201: 0 | N201: 0
I202: 0 | J202: 0 | M202: 0 | N202: 0
... 1634 more rows

Sheet Hourly Data Tool
B1: Unit Identifier
B2: Unit Nameplate Capacity, Head and Flow
B3: Metric Unit Hourly Efficiency Calculation
B5: Data Prior to Improvements: | M5: After Improvements:
B7: Year | C7: Month | D7: Day | E7: Hour | F7: Unit Average Flow | G7: Gross Operating Head | H7: Net Operating Head | I7: Unit Actual Generation | J7: Calculated Theoretical Generation | K7: Calculated Facility Efficiency | M7: Unit Efficiency | N7: Calculated Improved Generation | O7: Calculated Generation Increase
B8: (YYYY) | C8: (MM) | D8: (DD) | E8: (HH) | F8: (CMS) | G8: (M) | H8: (M) | I8: (MWH) | J8: (MWH) | K8: (%) | M8: (%) | N8: (MWH) | O8: (MWH)
J9: =IFERROR(F9*H9*9.81/1000,0) -> 0 | K9: =IFERROR(I9/J9*100,0) -> 0 | N9: =IFERROR(J9*M9/100,0) -> 0 | O9: =IFERROR(N9-I9,0) -> 0
J10: =IFERROR(F10*H10*9.81/1000,0) -> 0 | K10: =IFERROR(I10/J10*100,0) -> 0 | N10: =IFERROR(J10*M10/100,0) -> 0 | O10: =IFERROR(N10-I10,0) -> 0
J11: 0 | K11: 0 | N11: 0 | O11: 0
J12: 0 | K12: 0 | N12: 0 | O12: 0
J13: 0 | K13: 0 | N13: 0 | O13: 0
J14: 0 | K14: 0 | N14: 0 | O14: 0
J15: 0 | K15: 0 | N15: 0 | O15: 0
J16: 0 | K16: 0 | N16: 0 | O16: 0
J17: 0 | K17: 0 | N17: 0 | O17: 0
J18: 0 | K18: 0 | N18: 0 | O18: 0
J19: 0 | K19: 0 | N19: 0 | O19: 0
J20: 0 | K20: 0 | N20: 0 | O20: 0
J21: 0 | K21: 0 | N21: 0 | O21: 0
J22: 0 | K22: 0 | N22: 0 | O22: 0
J23: 0 | K23: 0 | N23: 0 | O23: 0
J24: 0 | K24: 0 | N24: 0 | O24: 0
J25: 0 | K25: 0 | N25: 0 | O25: 0
J26: 0 | K26: 0 | N26: 0 | O26: 0
J27: 0 | K27: 0 | N27: 0 | O27: 0
J28: 0 | K28: 0 | N28: 0 | O28: 0
J29: 0 | K29: 0 | N29: 0 | O29: 0
J30: 0 | K30: 0 | N30: 0 | O30: 0
J31: 0 | K31: 0 | N31: 0 | O31: 0
J32: 0 | K32: 0 | N32: 0 | O32: 0
J33: 0 | K33: 0 | N33: 0 | O33: 0
J34: 0 | K34: 0 | N34: 0 | O34: 0
J35: 0 | K35: 0 | N35: 0 | O35: 0
J36: 0 | K36: 0 | N36: 0 | O36: 0
J37: 0 | K37: 0 | N37: 0 | O37: 0
J38: 0 | K38: 0 | N38: 0 | O38: 0
J39: 0 | K39: 0 | N39: 0 | O39: 0
J40: 0 | K40: 0 | N40: 0 | O40: 0
J41: 0 | K41: 0 | N41: 0 | O41: 0
J42: 0 | K42: 0 | N42: 0 | O42: 0
J43: 0 | K43: 0 | N43: 0 | O43: 0
J44: 0 | K44: 0 | N44: 0 | O44: 0
J45: 0 | K45: 0 | N45: 0 | O45: 0
J46: 0 | K46: 0 | N46: 0 | O46: 0
J47: 0 | K47: 0 | N47: 0 | O47: 0
J48: 0 | K48: 0 | N48: 0 | O48: 0
J49: 0 | K49: 0 | N49: 0 | O49: 0
J50: 0 | K50: 0 | N50: 0 | O50: 0
J51: 0 | K51: 0 | N51: 0 | O51: 0
J52: 0 | K52: 0 | N52: 0 | O52: 0
J53: 0 | K53: 0 | N53: 0 | O53: 0
J54: 0 | K54: 0 | N54: 0 | O54: 0
J55: 0 | K55: 0 | N55: 0 | O55: 0
J56: 0 | K56: 0 | N56: 0 | O56: 0
J57: 0 | K57: 0 | N57: 0 | O57: 0
J58: 0 | K58: 0 | N58: 0 | O58: 0
J59: 0 | K59: 0 | N59: 0 | O59: 0
J60: 0 | K60: 0 | N60: 0 | O60: 0
J61: 0 | K61: 0 | N61: 0 | O61: 0
J62: 0 | K62: 0 | N62: 0 | O62: 0
J63: 0 | K63: 0 | N63: 0 | O63: 0
J64: 0 | K64: 0 | N64: 0 | O64: 0
J65: 0 | K65: 0 | N65: 0 | O65: 0
J66: 0 | K66: 0 | N66: 0 | O66: 0
J67: 0 | K67: 0 | N67: 0 | O67: 0
J68: 0 | K68: 0 | N68: 0 | O68: 0
J69: 0 | K69: 0 | N69: 0 | O69: 0
J70: 0 | K70: 0 | N70: 0 | O70: 0
J71: 0 | K71: 0 | N71: 0 | O71: 0
J72: 0 | K72: 0 | N72: 0 | O72: 0
J73: 0 | K73: 0 | N73: 0 | O73: 0
J74: =IFERROR(F74*H74*9.81/1000,0) -> 0 | K74: =IFERROR(I74/J74*100,0) -> 0 | N74: =IFERROR(J74*M74/100,0) -> 0 | O74: =IFERROR(N74-I74,0) -> 0
J75: 0 | K75: 0 | N75: 0 | O75: 0
J76: 0 | K76: 0 | N76: 0 | O76: 0
J77: 0 | K77: 0 | N77: 0 | O77: 0
J78: 0 | K78: 0 | N78: 0 | O78: 0
J79: 0 | K79: 0 | N79: 0 | O79: 0
J80: 0 | K80: 0 | N80: 0 | O80: 0
J81: 0 | K81: 0 | N81: 0 | O81: 0
J82: 0 | K82: 0 | N82: 0 | O82: 0
J83: 0 | K83: 0 | N83: 0 | O83: 0
J84: 0 | K84: 0 | N84: 0 | O84: 0
J85: 0 | K85: 0 | N85: 0 | O85: 0
J86: 0 | K86: 0 | N86: 0 | O86: 0
J87: 0 | K87: 0 | N87: 0 | O87: 0
J88: 0 | K88: 0 | N88: 0 | O88: 0
J89: 0 | K89: 0 | N89: 0 | O89: 0
J90: 0 | K90: 0 | N90: 0 | O90: 0
J91: 0 | K91: 0 | N91: 0 | O91: 0
J92: 0 | K92: 0 | N92: 0 | O92: 0
J93: 0 | K93: 0 | N93: 0 | O93: 0
J94: 0 | K94: 0 | N94: 0 | O94: 0
J95: 0 | K95: 0 | N95: 0 | O95: 0
J96: 0 | K96: 0 | N96: 0 | O96: 0
J97: 0 | K97: 0 | N97: 0 | O97: 0
J98: 0 | K98: 0 | N98: 0 | O98: 0
J99: 0 | K99: 0 | N99: 0 | O99: 0
J100: 0 | K100: 0 | N100: 0 | O100: 0
J101: 0 | K101: 0 | N101: 0 | O101: 0
J102: 0 | K102: 0 | N102: 0 | O102: 0
J103: 0 | K103: 0 | N103: 0 | O103: 0
J104: 0 | K104: 0 | N104: 0 | O104: 0
J105: 0 | K105: 0 | N105: 0 | O105: 0
J106: 0 | K106: 0 | N106: 0 | O106: 0
J107: 0 | K107: 0 | N107: 0 | O107: 0
J108: 0 | K108: 0 | N108: 0 | O108: 0
J109: 0 | K109: 0 | N109: 0 | O109: 0
J110: 0 | K110: 0 | N110: 0 | O110: 0
J111: 0 | K111: 0 | N111: 0 | O111: 0
J112: 0 | K112: 0 | N112: 0 | O112: 0
J113: 0 | K113: 0 | N113: 0 | O113: 0
J114: 0 | K114: 0 | N114: 0 | O114: 0
J115: 0 | K115: 0 | N115: 0 | O115: 0
J116: 0 | K116: 0 | N116: 0 | O116: 0
J117: 0 | K117: 0 | N117: 0 | O117: 0
J118: 0 | K118: 0 | N118: 0 | O118: 0
J119: 0 | K119: 0 | N119: 0 | O119: 0
J120: 0 | K120: 0 | N120: 0 | O120: 0
J121: 0 | K121: 0 | N121: 0 | O121: 0
J122: 0 | K122: 0 | N122: 0 | O122: 0
J123: 0 | K123: 0 | N123: 0 | O123: 0
J124: 0 | K124: 0 | N124: 0 | O124: 0
J125: 0 | K125: 0 | N125: 0 | O125: 0
J126: 0 | K126: 0 | N126: 0 | O126: 0
J127: 0 | K127: 0 | N127: 0 | O127: 0
J128: 0 | K128: 0 | N128: 0 | O128: 0
J129: 0 | K129: 0 | N129: 0 | O129: 0
J130: 0 | K130: 0 | N130: 0 | O130: 0
J131: 0 | K131: 0 | N131: 0 | O131: 0
J132: 0 | K132: 0 | N132: 0 | O132: 0
J133: 0 | K133: 0 | N133: 0 | O133: 0
J134: 0 | K134: 0 | N134: 0 | O134: 0
J135: 0 | K135: 0 | N135: 0 | O135: 0
J136: 0 | K136: 0 | N136: 0 | O136: 0
J137: 0 | K137: 0 | N137: 0 | O137: 0
J138: =IFERROR(F138*H138*9.81/1000,0) -> 0 | K138: =IFERROR(I138/J138*100,0) -> 0 | N138: =IFERROR(J138*M138/100,0) -> 0 | O138: =IFERROR(N138-I138,0) -> 0
J139: 0 | K139: 0 | N139: 0 | O139: 0
J140: 0 | K140: 0 | N140: 0 | O140: 0
J141: 0 | K141: 0 | N141: 0 | O141: 0
J142: 0 | K142: 0 | N142: 0 | O142: 0
J143: 0 | K143: 0 | N143: 0 | O143: 0
J144: 0 | K144: 0 | N144: 0 | O144: 0
J145: 0 | K145: 0 | N145: 0 | O145: 0
J146: 0 | K146: 0 | N146: 0 | O146: 0
J147: 0 | K147: 0 | N147: 0 | O147: 0
J148: 0 | K148: 0 | N148: 0 | O148: 0
J149: 0 | K149: 0 | N149: 0 | O149: 0
J150: 0 | K150: 0 | N150: 0 | O150: 0
J151: 0 | K151: 0 | N151: 0 | O151: 0
J152: 0 | K152: 0 | N152: 0 | O152: 0
J153: 0 | K153: 0 | N153: 0 | O153: 0
J154: 0 | K154: 0 | N154: 0 | O154: 0
J155: 0 | K155: 0 | N155: 0 | O155: 0
J156: 0 | K156: 0 | N156: 0 | O156: 0
J157: 0 | K157: 0 | N157: 0 | O157: 0
J158: 0 | K158: 0 | N158: 0 | O158: 0
J159: 0 | K159: 0 | N159: 0 | O159: 0
J160: 0 | K160: 0 | N160: 0 | O160: 0
J161: 0 | K161: 0 | N161: 0 | O161: 0
J162: 0 | K162: 0 | N162: 0 | O162: 0
J163: 0 | K163: 0 | N163: 0 | O163: 0
J164: 0 | K164: 0 | N164: 0 | O164: 0
J165: 0 | K165: 0 | N165: 0 | O165: 0
J166: 0 | K166: 0 | N166: 0 | O166: 0
J167: 0 | K167: 0 | N167: 0 | O167: 0
J168: 0 | K168: 0 | N168: 0 | O168: 0
J169: 0 | K169: 0 | N169: 0 | O169: 0
J170: 0 | K170: 0 | N170: 0 | O170: 0
J171: 0 | K171: 0 | N171: 0 | O171: 0
J172: 0 | K172: 0 | N172: 0 | O172: 0
J173: 0 | K173: 0 | N173: 0 | O173: 0
J174: 0 | K174: 0 | N174: 0 | O174: 0
J175: 0 | K175: 0 | N175: 0 | O175: 0
J176: 0 | K176: 0 | N176: 0 | O176: 0
J177: 0 | K177: 0 | N177: 0 | O177: 0
J178: 0 | K178: 0 | N178: 0 | O178: 0
J179: 0 | K179: 0 | N179: 0 | O179: 0
J180: 0 | K180: 0 | N180: 0 | O180: 0
J181: 0 | K181: 0 | N181: 0 | O181: 0
J182: 0 | K182: 0 | N182: 0 | O182: 0
J183: 0 | K183: 0 | N183: 0 | O183: 0
J184: 0 | K184: 0 | N184: 0 | O184: 0
J185: 0 | K185: 0 | N185: 0 | O185: 0
J186: 0 | K186: 0 | N186: 0 | O186: 0
J187: 0 | K187: 0 | N187: 0 | O187: 0
J188: 0 | K188: 0 | N188: 0 | O188: 0
J189: 0 | K189: 0 | N189: 0 | O189: 0
J190: 0 | K190: 0 | N190: 0 | O190: 0
J191: 0 | K191: 0 | N191: 0 | O191: 0
J192: 0 | K192: 0 | N192: 0 | O192: 0
J193: 0 | K193: 0 | N193: 0 | O193: 0
J194: 0 | K194: 0 | N194: 0 | O194: 0
J195: 0 | K195: 0 | N195: 0 | O195: 0
J196: 0 | K196: 0 | N196: 0 | O196: 0
J197: 0 | K197: 0 | N197: 0 | O197: 0
J198: 0 | K198: 0 | N198: 0 | O198: 0
J199: 0 | K199: 0 | N199: 0 | O199: 0
J200: 0 | K200: 0 | N200: 0 | O200: 0
J201: 0 | K201: 0 | N201: 0 | O201: 0
J202: =IFERROR(F202*H202*9.81/1000,0) -> 0 | K202: =IFERROR(I202/J202*100,0) -> 0 | N202: 0 | O202: =IFERROR(N202-I202,0) -> 0
... 4296 more rows

Sheet Example - Facility Efficiency
B1: Simplified Method for Calculating Efficiency Improvement for Hydropower Facility - Section 243
B3: Example Hydropower Facility
B4: 120 MW, Two Units
B5: Metric - Facility Efficiency Calculation
D8: Total Unit Actual Generation prior to improvements | E8: Total Theoretical Unit Generation | F8: Total Expected Unit Generation After Improvements
D9: (MWH) | E9: (MWH) | F9: (MWH)
C10: Unit E1 | D10: ='Example - Monthly Data Unit 1'!Unit_Cumulative_Actual_Generation -> 196300 | E10: ='Example - Monthly Data Unit 1'!Unit_Cumulative_Calculated_Theoretical_Generation -> 242665.0158 | F10: ='Example - Monthly Data Unit 1'!Unit_Cumulative_Calculated_Improved_Generation -> 207465.0444
C11: Unit E2 | D11: ='Example - Monthly Data Unit 2'!Unit_Cumulative_Actual_Generation -> 218950 | E11: ='Example - Monthly Data Unit 2'!Unit_Cumulative_Calculated_Theoretical_Generation -> 278979.6721 | F11: ='Example - Monthly Data Unit 2'!Unit_Cumulative_Calculated_Improved_Generation -> 237919.6064
C12: Cumulative: | D12: =SUM(D10:D11) -> 415250 | E12: =SUM(E10:E11) -> 521644.6879 | F12: =SUM(F10:F11) -> 445384.6508
C14: Existing Facility Efficiency: | F14: =IFERROR(D12/E12*100,0) -> 79.60399283
C16: Improved Facility Efficiency: | F16: =IFERROR(F12/E12*100,0) -> 85.3808466
C18: Total Facility Efficiency Improvement Percentage: | F18: =IFERROR(F16-F14,0) -> 5.77685377

Sheet Example - Monthly Data Unit 1
B1: Unit E1 Example
B2: 60 MW, 105 M, 60 CMS
B3: Unit Monthly Efficiency Calculation
B5: Data Prior to Improvements: | K5: After Improvements:
B7: Year | C7: Month | D7: Unit Average Flow | E7: Gross Operating Head | F7: Net Operating Head | G7: Unit Actual Generation | H7: Calculated Theoretical Generation | I7: Calculated Facility Efficiency | K7: Unit Efficiency | L7: Calculated Improved Generation | M7: Calculated Generation Increase
B8: (YYYY) | C8: (MM) | D8: (CMS) | E8: (M) | F8: (M) | G8: (MWH) | H8: (MWH) | I8: (%) | K8: (%) | L8: (MWH) | M8: (MWH)
B9: 2018 | C9: 10 | D9: 25.5 | E9: 47 | F9: =E9-0.0015*POWER(D9,2) -> 46.024625 | G9: 5300 | H9: =IFERROR(9.81*D9*F9*24*DAY(EOMONTH(DATEVALUE(C9&"-01-"&B9),0))/1000,0) -> 8565.88781 | I9: =IFERROR(G9/H9*100,0) -> 61.87332963 | K9: 82.5 | L9: =IFERROR(H9*K9/100,0) -> 7066.857443 | M9: =IFERROR(L9-G9,0) -> 1766.857443
B10: 2018 | C10: =C9+1 -> 11 | D10: 25 | E10: 50 | F10: =E10-0.0015*POWER(D10,2) -> 49.0625 | G10: 5550 | H10: =IFERROR(9.81*D10*F10*24*DAY(EOMONTH(DATEVALUE(C10&"-01-"&B10),0))/1000,0) -> 8663.45625 | I10: 64.06219227 | K10: 82.6 | L10: =IFERROR(H10*K10/100,0) -> 7156.014862 | M10: 1606.014862
B11: 2018 | C11: =C10+1 -> 12 | D11: 32.5 | E11: 48 | F11: =E11-0.0015*POWER(D11,2) -> 46.415625 | G11: 7200 | H11: 11010.05546 | I11: 65.39476596 | K11: 83 | L11: 9138.346032 | M11: 1938.346032
B12: 2019 | C12: 1 | D12: 35.5 | E12: 55 | F12: =E12-0.0015*POWER(D12,2) -> 53.109625 | G12: 9550 | H12: 13760.79519 | I12: 69.40005916 | K12: 84 | L12: 11559.06796 | M12: 2009.067956
B13: 2019 | C13: =C12+1 -> 2 | D13: 42.5 | E13: 58 | F13: 55.290625 | G13: 12000 | H13: 15490.97345 | I13: 77.46446688 | K13: 83 | L13: 12857.50797 | M13: 857.5079656
B14: 2019 | C14: =C13+1 -> 3 | D14: 49.5 | E14: 65 | F14: 61.324625 | G14: 17500 | H14: 22155.52487 | I14: 78.98707028 | K14: 85 | L14: 18832.19614 | M14: 1332.196139
B15: 2019 | C15: 4 | D15: 59 | E15: 97 | F15: 91.7785 | G15: 34500 | H15: 38246.74417 | I15: 90.20375655 | K15: 87 | L15: 33274.66743 | M15: -1225.332571
B16: 2019 | C16: 5 | D16: 56.5 | E16: 104 | F16: 99.211625 | G16: 34500 | H16: 40912.21131 | I16: 84.32690118 | K16: 87 | L16: 35593.62384 | M16: 1093.62384
B17: 2019 | C17: 6 | D17: 55 | E17: 88.5 | F17: 83.9625 | G17: 30000 | H17: 32617.41615 | I17: 91.97540315 | K17: 87 | L17: 28377.15205 | M17: -1622.847949
B18: 2019 | C18: 7 | D18: 44 | E18: 79 | F18: 76.096 | G18: 20000 | H18: 24437.48162 | I18: 81.8414938 | K18: 86 | L18: 21016.23419 | M18: 1016.234189
B19: 2019 | C19: =C18+1 -> 8 | D19: 39 | E19: 63 | F19: 60.7185 | G19: 14000 | H19: 17283.33644 | I19: 81.0028784 | K19: 85 | L19: 14690.83597 | M19: 690.8359746
B20: 2019 | C20: 9 | D20: 29.5 | E20: 47 | F20: 45.694625 | G20: 6200 | H20: 9521.133121 | I20: 65.11829969 | K20: 83 | L20: 7902.540491 | M20: 1702.540491
B21: Unit Cumulative: | G21: =SUM(G9:G20) -> 196300 | H21: =SUM(H9:H20) -> 242665.0158 | I21: 80.89340745 | L21: =SUM(L9:L20) -> 207465.0444 | M21: =SUM(M9:M20) -> 11165.04437
G23: Existing Unit Efficiency: | H23: =IFERROR(G21/H21*100,0) -> 80.89340745
G25: Improved Unit Efficiency: | H25: =IFERROR(L21/H21*100,0) -> 85.49441857

Sheet Example - Monthly Data Unit 2
B1: Unit E2 Example
B2: 60 MW, 105 M, 60 CMS
B3: Unit Monthly Efficiency Calculation
B5: Data Prior to Improvements: | K5: After Improvements:
B7: Year | C7: Month | D7: Unit Average Flow | E7: Gross Operating Head | F7: Net Operating Head | G7: Unit Actual Generation | H7: Calculated Theoretical Generation | I7: Calculated Facility Efficiency | K7: Unit Efficiency | L7: Calculated Improved Generation | M7: Calculated Generation Increase
B8: (YYYY) | C8: (MM) | D8: (CMS) | E8: (M) | F8: (M) | G8: (MWH) | H8: (MWH) | I8: (%) | K8: (%) | L8: (MWH) | M8: (MWH)
B9: 2018 | C9: 10 | D9: 50 | E9: 54 | F9: =E9-(0.0015*POWER(D9,2)) -> 50.25 | G9: 12000 | H9: =IFERROR(9.81*D9*F9*24*DAY(EOMONTH(DATEVALUE(C9&"-01-"&B9),0))/1000,0) -> 18337.833 | I9: =IFERROR(G9/H9*100,0) -> 65.43848447 | K9: 83 | L9: =IFERROR(H9*K9/100,0) -> 15220.40139 | M9: =IFERROR(L9-G9,0) -> 3220.40139
B10: 2018 | C10: =C9+1 -> 11 | D10: 48 | E10: 56 | F10: =E10-(0.0015*POWER(D10,2)) -> 52.544 | G10: 11600 | H10: =IFERROR(9.81*D10*F10*24*DAY(EOMONTH(DATEVALUE(C10&"-01-"&B10),0))/1000,0) -> 17814.18148 | I10: 65.11666008 | K10: 83 | L10: =IFERROR(H10*K10/100,0) -> 14785.77063 | M10: 3185.770627
B11: 2018 | C11: =C10+1 -> 12 | D11: 46 | E11: 52 | F11: 48.826 | G11: 9900 | H11: 16392.71625 | I11: 60.39267594 | K11: 82.5 | L11: 13523.9909 | M11: 3623.990902
B12: 2019 | C12: 1 | D12: 38 | E12: 57 | F12: 54.834 | G12: 9550 | H12: 15208.11778 | I12: 62.79541058 | K12: 84 | L12: 12774.81893 | M12: 3224.818934
B13: 2019 | C13: =C12+1 -> 2 | D13: 42.5 | E13: 60 | F13: 57.290625 | G13: 13000 | H13: 16051.32065 | I13: 80.99022056 | K13: 83 | L13: 13322.59614 | M13: 322.5961416
B14: 2019 | C14: =C13+1 -> 3 | D14: 49.5 | E14: 68 | F14: 64.324625 | G14: 19500 | H14: 23239.37291 | I14: 83.90932094 | K14: 85 | L14: 19753.46697 | M14: 253.4669735
B15: 2019 | C15: 4 | D15: 59 | E15: 102 | F15: 96.7785 | G15: 34500 | H15: 40330.38817 | I15: 85.54343651 | K15: 87 | L15: 35087.43771 | M15: 587.4377086
B16: 2019 | C16: 5 | D16: 56.5 | E16: 109 | F16: 104.211625 | G16: 35500 | H16: 42974.07711 | I16: 82.60794038 | K16: 87 | L16: 37387.44709 | M16: 1887.447086
B17: 2019 | C17: 6 | D17: 55 | E17: 93 | F17: 88.4625 | G17: 31000 | H17: 34365.55815 | I17: 90.20659541 | K17: 87 | L17: 29898.03559 | M17: -1101.964409
B18: 2019 | C18: 7 | D18: 44 | E18: 82 | F18: 79.096 | G18: 21000 | H18: 25400.9021 | I18: 82.67422913 | K18: 86 | L18: 21844.7758 | M18: 844.775802
B19: 2019 | C19: =C18+1 -> 8 | D19: 39 | E19: 66 | F19: 63.7185 | G19: 15000 | H19: 18137.27732 | I19: 82.70260048 | K19: 85 | L19: 15416.68572 | M19: 416.6857226
B20: 2019 | C20: 9 | D20: 32 | E20: 49 | F20: 47.464 | G20: 6400 | H20: 10727.92719 | I20: 59.65737728 | K20: 83 | L20: 8904.179571 | M20: 2504.179571
B21: Unit Cumulative: | G21: =SUM(G9:G20) -> 218950 | H21: =SUM(H9:H20) -> 278979.6721 | I21: 78.48242073 | L21: =SUM(L9:L20) -> 237919.6064 | M21: =SUM(M9:M20) -> 18969.60645
G23: Existing Unit Efficiency: | H23: =IFERROR(G21/H21*100,0) -> 78.48242073
G25: Improved Unit Efficiency: | H25: =IFERROR(L21/H21*100,0) -> 85.28205824
